Cogmind - Beta 12 @@@ ROGUE MODE // 2023.12.08 @ 20:34:28 Player: Kel Result: Self-destructed Performance ------------- Evolutions (1) 500 Regions Visited (4) 800 Robots Destroyed (4) 20 Value Destroyed (61) 61 Prototype IDs (0) 0 Alien Tech Used (0) 0 Bonus (0) 0 TOTAL SCORE: 1381 Bonus ------- None Cogmind --------- Core Integrity 221/400 Matter 234/300 Energy 250/250 System Corruption 0% Temperature Cool (18) Movement Rolling (95) Ox1 Location -9/Storage Parts ------- > --- POWER (1) -------- Ion Engine > --- PROPULSION (2) --- Wheel > --- UTILITY (3) ------ Small Storage Unit Seismic Detector > --- WEAPON (3) ------- (None) > --- INVENTORY (8) ---- Light Treads Light Treads Compact Wheel Terrain Scan Processor Mining Laser Peak State ------------ > --- POWER ------------ Ion Engine > --- PROPULSION ------- Wheel Compact Wheel > --- UTILITY ---------- Small Storage Unit Improved Terrain Scanner Seismic Detector > --- WEAPON ----------- Assault Rifle Light Assault Rifle Rocket Launcher > --- INVENTORY -------- Light Treads Light Treads Wheel Compact Wheel Terrain Scan Processor Mining Laser [Rating: 12] Favorites ----------- Power Ion Engine Engine Ion Engine Propulsion Wheel Wheel Wheel Utility Small Storage Unit Device Seismic Detector Storage Small Storage Unit Weapon Assault Rifle Energy Gun EM Pulse Gun Ballistic Gun Assault Rifle Launcher Rocket Launcher Build | -11 -10 -10 -9 -9 ------- Run | Jun Mat Min Mat Sto Slots Evolved 2 | . . . 2 . Power . | . . . . . Propulsion . | . . . . . Utility 1 | . . . 1 . Weapon 1 | . . . 1 . Parts Attached 12 | 6 1 2 2 1 Power 2 | 1 . 1 . . Engine 2 | 1 . 1 . . Core . | . . . . . Reactor . | . . . . . Propulsion 3 | 2 . . . 1 Treads . | . . . . . Leg . | . . . . . Wheel 3 | 2 . . . 1 Hover . | . . . . . Flight . | . . . . . Utility 3 | 1 1 . 1 . Device 2 | . 1 . 1 . Storage 1 | 1 . . . . Processor . | . . . . . Hackware . | . . . . . Protection . | . . . . . Artifact . | . . . . . Weapon 4 | 2 . 1 1 . Energy Gun 1 | 1 . . . . Energy Cannon . | . . . . . Ballistic Gun 2 | 1 . . 1 . Ballistic Cannon . | . . . . . Launcher 1 | . . 1 . . Special Weapon . | . . . . . Impact Weapon . | . . . . . Slashing Weapon . | . . . . . Piercing Weapon . | . . . . . Special Melee Weapon . | . . . . . Unidentified Prototypes . | . . . . . Parts Lost 8 | . . 2 1 5 Power 1 | . . 1 . . Propulsion 2 | . . . . 2 Utility 1 | . . . . 1 Weapon 4 | . . 1 1 2 Highest Loss Streak 5 | . . 2 1 5 To Critical Strikes . | . . . . . Average Slot Usage (%) 93 | . 93 96 96 85 Engine 13 | . 14 13 11 11 Wheel 26 | . 28 28 22 20 Device 13 | . 8 14 22 22 Storage 13 | . 14 14 11 11 Energy Gun 7 | . 14 5 . . Ballistic Gun 13 | . 14 14 18 11 Launcher 4 | . . 5 11 9 Naked Turns . | . . . . . Heaviest Build 19 | 14 15 17 19 17 Greatest Support 26 | 3 3 26 26 26 Greatest Overweight (x) 4 | 4 4 . . 1 Average Overweight (x) 1 | 2 4 . . . Largest Inventory Capacity 8 | 8 8 8 8 8 Average Capacity 7 | 7 8 8 8 8 Most Carried 8 | 6 7 8 7 6 Average Carried 6 | 3 6 7 6 5 Final Capacity 8 | 8 8 8 8 8 Final Carried 8 | 6 7 8 6 5 Class Distribution -------------------- 100% | Mutant Dominant Class ---------------- Mutant | -10/Materials Mutant | -10/Mines Mutant | -9/Materials Mutant | -9/Storage Resources | -11 -10 -10 -9 -9 ----------- Run | Jun Mat Min Mat Sto Matter Collected 335 | 216 . 119 . . Remotely . | . . . . . Salvage Created 111 | . . 110 1 . Parts 7 | . . 6 1 . Haulers Intercepted . | . . . . . Recyclers Shooed 1 | . . 1 . . Parts Field Recycled . | . . . . . Retrieved Matter . | . . . . . Parts Self-Destructed . | . . . . . Prevented . | . . . . . Kills | -11 -10 -10 -9 -9 ------- Run | Jun Mat Min Mat Sto Combat Hostiles Destroyed 6 | . . 5 1 . Guns 4 | . . 4 . . AOE 2 | . . 1 1 . Classes Destroyed 4 | . . 3 1 . Builder 2 | . . 1 1 . Recycler 1 | . . 1 . . Sentry 1 | . . . 1 . Assembled 5 | . . 5 . . Best Kill Streak 4 | . . 4 2 . Combat Bots Only 4 | . . 4 1 . Max Kills in Single Turn 2 | . . 2 1 . Gunslinging . | . . . . . Exploded 1 | . . 1 1 . Melee . | . . . . . Uniques/NPCs Destroyed . | . . . . . Combat | -11 -10 -10 -9 -9 -------- Run | Jun Mat Min Mat Sto Damage Taken 832 | . . 265 86 481 Core 207 | . . 28 30 149 Absorbed by Shields . | . . . . . Core Remaining (%) 94 | 100 . 88 . . Volleys Fired 19 | . . 13 6 . Largest 2 | . . 2 1 . Hottest 60 | . . 60 33 . Shots Fired 22 | . . 16 6 . Gun 14 | . . 14 . . Cannon . | . . . . . Launcher 8 | . . 2 6 . Special . | . . . . . Kinetic 11 | . . 11 . . Thermal . | . . . . . Explosive 8 | . . 2 6 . Electromagnetic 3 | . . 3 . . Robot Hit Streak 7 | . . 7 2 . Robot Miss Streak 3 | . . 2 3 . Penetration Max . | . . . . . Secondary Targets . | . . . . . Shots Hit Robots 13 | . . 10 3 . Core Hits 14 | . . 11 3 . Critical Kills . | . . . . . Critical Parts Destroyed . | . . . . . Critical Strikes . | . . . . . Melee Attacks . | . . . . . Impact . | . . . . . Slashing . | . . . . . Piercing . | . . . . . Sneak Attacks . | . . . . . Combat Hostiles . | . . . . . Follow-up Attacks . | . . . . . Damage Inflicted 377 | . . 233 144 . Guns 125 | . . 125 . . Cannons . | . . . . . Explosions 252 | . . 108 144 . Melee . | . . . . . Ramming . | . . . . . Kinetic 115 | . . 115 . . Thermal . | . . . . . Explosive 252 | . . 108 144 . Electromagnetic 10 | . . 10 . . Impact . | . . . . . Slashing . | . . . . . Piercing . | . . . . . Highest Corruption . | . . . . . Average Corruption . | . . . . . Corruption Purged . | . . . . . Corruption Blocked . | . . . . . Overload Shots . | . . . . . Overflow Damage . | . . . . . Projectiles . | . . . . . Explosions . | . . . . . Melee . | . . . . . Knockbacks . | . . . . . Impact . | . . . . . Kinetic . | . . . . . Secondary . | . . . . . Self-Inflicted Damage . | . . . . . Shots . | . . . . . Rammed . | . . . . . Targets Rammed . | . . . . . Kicked . | . . . . . Crushed . | . . . . . Highest Temperature 40 | . . 40 2 13 Average Temperature 17 | . . 21 2 13 Received Heat Transfer 352 | . . 100 27 225 Siege Activations . | . . . . . Robots Corrupted . | . . . . . Combat Hostiles . | . . . . . Parts Fried . | . . . . . Impact Corruptions . | . . . . . Robots Melted . | . . . . . Combat Hostiles . | . . . . . Parts Melted . | . . . . . Heat Transferred . | . . . . . Parts Sabotaged . | . . . . . Parts Stolen . | . . . . . Parts Stripped . | . . . . . Power Chain Reactions . | . . . . . Missiles Intercepted . | . . . . . Alert | -11 -10 -10 -9 -9 ------- Run | Jun Mat Min Mat Sto Peak Influence 76 | . 4 20 76 76 Initial 31 | . . 1 7 31 Average 11 | . 1 5 27 54 Maximum Alert Level . | . . . . . Low Security (%) 100 | 100 100 100 100 100 Level 1 . | . . . . . Level 2 . | . . . . . Level 3 . | . . . . . Level 4 . | . . . . . Level 5 . | . . . . . High Security . | . . . . . Max Security . | . . . . . Squads Dispatched . | . . . . . Investigation . | . . . . . Extermination . | . . . . . Reinforcement . | . . . . . Assault . | . . . . . Garrison . | . . . . . Intercept . | . . . . . Searches Triggered . | . . . . . Construction Impeded . | . . . . . Haulers Reinforced . | . . . . . Active Scanning Responses . | . . . . . Cargo Convoy Interrupts . | . . . . . Stealth | -11 -10 -10 -9 -9 --------- Run | Jun Mat Min Mat Sto Distress Signals 1 | . . . . 1 Communications Jammed . | . . . . . Distress Signals . | . . . . . Times Spotted 22 | . . 6 1 15 Peak Tracking Total 16 | . . 4 1 16 Tactical Retreats . | . . . . . Traps | -11 -10 -10 -9 -9 ------- Run | Jun Mat Min Mat Sto Traps Triggered . | . . . . . Indirectly . | . . . . . Trap Hack Attempts . | . . . . . Triggered . | . . . . . Disarmed . | . . . . . Reprogrammed . | . . . . . Reused . | . . . . . Traps Extracted . | . . . . . Installed . | . . . . . Triggered . | . . . . . Machines | -11 -10 -10 -9 -9 ---------- Run | Jun Mat Min Mat Sto Machines Disabled . | . . . . . Max in Single Turn . | . . . . . Machines Repaired . | . . . . . Machines Sabotaged . | . . . . . Overloaded Fab Kills . | . . . . . Hacking | -11 -10 -10 -9 -9 --------- Run | Jun Mat Min Mat Sto Machines Accessed 2 | . 2 . . . Terminals 2 | . 2 . . . Fabricators . | . . . . . Repair Stations . | . . . . . Recycling Units . | . . . . . Scanalyzers . | . . . . . Garrison Access . | . . . . . Total Hacks 4 | . 4 . . . Successful 2 | . 2 . . . Failed 2 | . 2 . . . Catastrophic . | . . . . . Database Lockouts . | . . . . . Manual . | . . . . . Terminals 4 | . 4 . . . Fabricators . | . . . . . Repair Stations . | . . . . . Recycling Units . | . . . . . Scanalyzers . | . . . . . Garrison Access . | . . . . . Terminal Hacks 2 | . 2 . . . Emergency Access Points 1 | . 1 . . . Zone Layout 1 | . 1 . . . Fabricator Hacks . | . . . . . Repair Station Hacks . | . . . . . Recycling Unit Hacks . | . . . . . Scanalyzer . | . . . . . Garrison Access Hacks . | . . . . . Unauthorized Hacks . | . . . . . Terminals . | . . . . . Fabricators . | . . . . . Repair Stations . | . . . . . Recycling Units . | . . . . . Scanalyzers . | . . . . . Garrison Access . | . . . . . Data Cores Recovered . | . . . . . Used . | . . . . . Hacking Detections 2 | . 2 . . . Full Trace Events 1 | . 1 . . . Feedback Events . | . . . . . Feedback Blocked . | . . . . . Robot Schematics Acquired . | . . . . . Robots Built . | . . . . . Authchips . | . . . . . Time . | . . . . . Total Robot Build Rating . | . . . . . Part Schematics Acquired . | . . . . . Parts Built . | . . . . . Authchips . | . . . . . Time . | . . . . . Total Part Build Rating . | . . . . . Parts Repaired . | . . . . . Time . | . . . . . Parts Recycled . | . . . . . Recycled Matter . | . . . . . Retrieved Matter . | . . . . . Retrieved Components . | . . . . . Parts Scanalyzed . | . . . . . Part Schematics Acquired . | . . . . . Parts Damaged . | . . . . . Bothacking | -11 -10 -10 -9 -9 ------------ Run | Jun Mat Min Mat Sto Used RIF Installer . | . . . . . Robots Hacked . | . . . . . Non-combat . | . . . . . Combat . | . . . . . Robot Hacks Applied . | . . . . . Relay Couplers Released . | . . . . . Fabnet Peak Effective % . | . . . . . Robots Rewired . | . . . . . Allies Hacked . | . . . . . Hacks Repelled . | . . . . . Allies | -11 -10 -10 -9 -9 -------- Run | Jun Mat Min Mat Sto Total Allies . | . . . . . Largest Group . | . . . . . Highest-Rated Group . | . . . . . Highest-Rated Ally . | . . . . . Total Orders . | . . . . . Ally Attacks . | . . . . . Total Damage . | . . . . . Kills . | . . . . . Allies Corrupted . | . . . . . Allies Melted . | . . . . . Intel | -11 -10 -10 -9 -9 ------- Run | Jun Mat Min Mat Sto Robot Analysis Total . | . . . . . Derelict Logs Recovered 1 | . . 1 . . Drone Launches . | . . . . . Drone Recoveries . | . . . . . Exploration | -11 -10 -10 -9 -9 ------------- Run | Jun Mat Min Mat Sto Turns Passed 597 | 119 193 172 33 80 Spaces Moved 391 | 54 77 150 22 88 Core 131 | 54 77 . . . Treads . | . . . . . Legs . | . . . . . Wheels 260 | . . 150 22 88 Hover . | . . . . . Flight . | . . . . . Fastest Speed 50 | 50 250 90 90 80 Average Speed 136 | 196 250 90 90 89 Slowest Speed 250 | 250 250 90 90 95 Overloaded Moves . | . . . . . Propulsion Burnouts . | . . . . . Robots Hopped . | . . . . . Cave-ins Triggered . | . . . . . Exploration Rate (%) 18 | 6 16 30 6 33 Regions Visited 4 Branch Regions 2 Pre-discovered Areas . | . . . . . Known Exits Taken . | . . . . . Unknown Exits Taken 4 | 1 1 1 1 . Scrap Searched 1 | . . 1 . . Spaces Dug . | . . . . . Terrain Destroyed 58 | . . 14 44 . Melee . | . . . . . Projectile . | . . . . . AOE 58 | . . 14 44 . Terrain Rammed . | . . . . . Walls Destroyed . | . . . . . Machines Disabled . | . . . . . Actions | -11 -10 -10 -9 -9 --------- Run | Jun Mat Min Mat Sto Total 432 | 65 78 171 29 89 Wait . | . . . . . Move 387 | 53 76 149 21 88 Hop . | . . . . . Pick Up 12 | 6 1 5 . . Fast Attach 7 | 6 1 . . . Attach 5 | . . 2 2 1 Detach . | . . . . . Swap . | . . . . . Drop 2 | . . 2 . . Fire 19 | . . 13 6 . Melee . | . . . . . Ram . | . . . . . Kick . | . . . . . Crush . | . . . . . Escape Stasis . | . . . . . Rewire . | . . . . . Trap . | . . . . . Miscellaneous . | . . . . . Route ------- -11/Junkyard -10/Materials -10/Mines -9/Materials (discovered 2 exits: Min / [*Sto]) -9/Storage History --------- Turn | Location | Event 36 | -11/Junkyard | Discovered new exit (range 16) 120 | -11/Junkyard | Entered Materials 222 | -10/Materials | Discovered new exit (range 10) 313 | -10/Materials | Entered Mines 314 | -10/Mines | Assembled infested the area 316 | -10/Mines | Build established: Mutant 320 | -10/Mines | Received a Rocket Launcher from a helpful Derelict 335 | -10/Mines | Learned 4 Materials zone layouts 480 | -10/Mines | Discovered new exit (range 5) 485 | -10/Mines | Entered Materials 485 | -9/Materials | Evolved 2 slots: Utility x1, Weapon x1 486 | -9/Materials | Identified exit to Mines 501 | -9/Materials | Discovered new exit (range 7) 518 | -9/Materials | Entered Storage 598 | -9/Storage | Self-destructed Last Messages --------------- 00501_ EXIT=FOUND 00502_ Assault Rifle destroyed. 00506_ U-05 Engineer builds a Wall. 00510_ The unstable cave ceiling collapses. 00510_ U-05 Engineer destroyed. 00512_ Y-45 Defender destroyed. 00514_ The unstable cave ceiling collapses. 00515_ U-05 Engineer builds a Wall. 00516_ The unstable cave ceiling collapses. LOCATION=UNKNOWN GOAL=ESCAPE 00540_ K-01 Serf collects debris. 00566_ Component Storage disabled. 00580_ Rocket Launcher destroyed. 00582_ W-16 Scout sends out distress signal. 00588_ Com. Wheel destroyed. 00590_ Critical hit (Burn: +37). 00597_ Wheel destroyed. 00597_ Imp. Terrain Scanner destroyed. 00598_ Lgt. Assault Rifle destroyed. Map ----- +----------------------------------------------------+ | | | | | | | | | | | | | | | | | | | | | ??????????????????????????????????????????? | | ??????????????????????????????????????????? | | ????????????????????????#?????????????????? | | ??????????????????????????????????????????? | | ??????????????????????????????????????????? | | ??????????????????????????????????????????? | | ?????????????????????#???????????????????#? | | ??????????????????????#???????????????????? | | ?????????????????????????????????????????#? | | ???????????????????????????????#? ????????? | | ??????????????????????????????????????????? | | ??????????????????????#????? ?????????????? | | ??????????????#####???# ??????????????????? | | ??# #######"T"######+#######??????????? | | ??# w g gY +???????#??? | | ??# Y s @ Y ############ | | ??# uss Y Y ## # | | ??# s###############/######g## # | | ??????????????????????" ??# # " """ # | | ?????????????????????T" ?# / """"" + | | ????????????????????" " ## # """"" # | | ???????????????????? ######= # | | ??????????????????? #????# "T" # | | ??????????????????# #????# # | | ??????????????????? !!! #????# #"Y"##### | | ???????????????????? !! ?#????###"""#???# | | ???????????????????? !! ???????#####???# | | ????????????????????#######?????????#?????# | | ?????????????????????????????????????##???# | | ??????????????????????????????????????????# | | ??????????????????????????????????????????# | | ??????????????????????????????????????????? | | ??????????????????????????????????????????? | | ??????????????????????????????????????????? | | ??????????????????????????????????????????? | | ??????????????????????????????????????????? | | ??????????????????????????????????????????? | | ??????????????????????????????????????????? | | ??????????????????????????????????????????? | | ??????????????????????????????????????????? | +----------------------------------------------------+ Best States ------------- Heat Dissipation 28 Energy Generation 10 Energy Capacity 250 Matter Stores 300 Matter Capacity 300 Sight Range 16 Terrain Scan Range 16 Terrain Scan Density 10 Evasion (%) 50 Item Schematics ----------------- None Robot Schematics ------------------ None Fabricated ------------ Nothing Alien Tech Used ----------------- None Achievements -------------- None Challenges ------------ None Game ------ Seed ContainmentLobotomyShotgun Manual? 0 Play Time 00:07:50 Cumulative 16.6 hours Start 2023.12.08 @ 20:26:57 End 2023.12.08 @ 20:34:28 Sessions 1 Manual Loads 0 Difficulty Rogue Special Mode None Game No. 30 Rogue 30 Adventurer 0 Explorer 0 Win Type - Total 0 Types 0/0/0/0/0/0/0/0/0 Lore% 20 Gallery% 22 Achievement% 17 Wizard Run 0 Options --------- ASCII 0 Keyboard 1 Movement Numpad Keybinds 0 Fullscreen 1 Font 18/Terminus Map View 76x50 Tactical HUD 1 Map Filters NONE Filters NONE Steam 1 RUN: dccaca32-bbcc-4997-8a87-cfef41e46ce9